bitfinex-derivatives/quotes_ETHF0:USTF0_20250507
["timestamp","ask_amount","ask_price","bid_price","bid_amount"]
[1746578307250,2.87537,1838.1,1838.0,1.08819]
[1746578307753,1.7872,1838.1,1837.9,1.9683]
[1746578307957,2.87535,1838.1,1838.0,1.08819]
[1746578308851,1.7872,1838.1,1838.0,1.08819]
[1746578309051,1.08811,1838.2,1838.1,1.08813]
[1746578309654,2.87526,1838.3,1838.2,1.08807]
[1746578309961,1.7872,1838.3,1838.2,1.08807]
[1746578310451,2.87521,1838.3,1838.2,1.08807]
[1746578310852,1.08809,1838.2,1838.1,1.08808]
[1746578314059,1.7872,1838.3,1838.2,1.08807]
[1746578314252,2.87522,1838.3,1838.2,1.08807]
[1746578314654,7.2175,1838.4,1838.3,1.08801]
[1746578314655,5.341,1838.4,1838.3,1.08801]
[1746578314850,6.42895,1838.4,1838.3,1.08801]
[1746578315054,8.21165,1838.4,1838.3,4.29581]
[1746578315254,1.08784,1838.6,1838.5,1.08783]
[1746578315456,1.08784,1838.6,1838.5,4.29563]
[1746578315656,1.08784,1838.6,1838.5,3.2078]
[1746578315858,2.87264,1838.6,1838.5,3.2078]
[1746578316057,2.87264,1838.6,1838.5,4.29569]
[1746578316668,2.87264,1838.6,1838.5,3.2078]
[1746578316862,2.87264,1838.6,1838.5,4.29569]
[1746578317064,2.87264,1838.6,1838.5,3.2078]
[1746578317757,2.87264,1838.6,1838.2,1.9502]
[1746578317758,1.08801,1838.3,1838.2,3.2078]
[1746578317964,8.05699,1838.4,1838.0,3.2078]
[1746578318167,3.6247,1838.2,1838.0,3.2078]
[1746578318367,1.08813,1838.1,1838.0,4.29597]
[1746578318664,2.87293,1838.1,1838.0,3.2078]
[1746578319468,2.87293,1838.1,1838.0,4.29599]
[1746578319666,2.87293,1838.1,1838.0,3.2078]
[1746578319968,1.08825,1837.9,1837.8,1.08826]
[1746578320156,1.08822,1838.0,1837.9,1.08822]
[1746578320660,1.08826,1837.9,1837.8,1.08826]
[1746578321061,1.08823,1838.0,1837.9,1.08822]
[1746578321266,1.08827,1837.9,1837.8,1.08826]
[1746578321565,3.01837,1837.9,1837.8,1.08826]
[1746578323369,1.9301,1837.9,1837.8,1.08826]
[1746578323664,3.01835,1837.9,1837.8,1.08826]
[1746578326064,1.9301,1837.9,1837.8,1.08826]
[1746578326267,3.01835,1837.9,1837.8,1.08826]
[1746578326569,1.9301,1837.9,1837.8,1.08826]
[1746578326770,3.01835,1837.9,1837.8,1.08826]
[1746578327370,1.08831,1837.8,1837.7,2.90122]
[1746578327570,2.91891,1837.8,1837.7,2.90122]
[1746578330772,1.08837,1837.7,1837.6,8.10308]
[1746578330973,2.99137,1837.7,1837.6,9.94328]
[1746578332071,2.99137,1837.7,1837.6,3.2078]
[1746578332270,1.08848,1837.5,1837.4,6.23992]
[1746578332467,1.08848,1837.5,1837.4,47.03992]
[1746578333368,5.32,1837.6,1837.5,1.08848]
[1746578333569,5.32,1837.6,1837.5,3.03208]
[1746578333967,6.40843,1837.6,1837.5,3.03208]
[1746578334170,5.32,1837.6,1837.5,3.03208]
[1746578334471,6.40843,1837.6,1837.5,3.03208]
[1746578334673,5.32,1837.6,1837.5,3.03208]
[1746578335265,6.40843,1837.6,1837.5,3.03208]
[1746578335562,5.32,1837.6,1837.5,3.03208]
[1746578336569,8.23725,1837.8,1837.7,1.08837]
[1746578336976,1.0884,1837.7,1837.6,1.08838]
[1746578337367,1.08848,1837.5,1837.4,45.09631]
[1746578337575,1.0886,1837.3,1837.2,7.0817]
[1746578337773,1.0886,1837.3,1837.2,3.2078]
[1746578337971,1.0886,1837.3,1837.2,4.29646]
[1746578338173,8.32936,1837.4,1837.3,1.0886]
[1746578338378,7.2408,1837.4,1837.3,3.0283]
[1746578338568,8.32934,1837.4,1837.3,3.0283]
[1746578339277,1.0886,1837.3,1837.2,3.2078]
[1746578339473,1.08873,1837.2,1837.1,1.0887]
[1746578339775,3.01642,1837.3,1837.2,1.08866]
[1746578340076,1.9278,1837.3,1837.2,1.08866]
[1746578340274,1.9278,1837.3,1837.2,3.04396]
[1746578340769,3.0164,1837.3,1837.2,3.04396]
[1746578341172,3.0164,1837.3,1837.2,1.9553]
[1746578342073,1.08866,1837.2,1837.1,45.09648]
[1746578342278,2.96096,1837.2,1837.1,3.2078]
[1746578342478,4.84826,1837.2,1837.1,3.2078]
[1746578342879,2.72203,1837.0,1836.6,3.2078]
[1746578343080,1.08896,1836.7,1836.5,1.08903]
[1746578343380,1.08896,1836.7,1836.6,40.8]
[1746578344081,1.08896,1836.7,1836.5,2.92815]
[1746578344082,1.08902,1836.6,1836.5,2.92815]
[1746578344475,1.08902,1836.6,1836.5,42.6391]
[1746578345281,1.08902,1836.6,1836.5,40.8]
[1746578345986,1.08908,1836.5,1836.4,4.9528]
[1746578346484,1.08908,1836.5,1836.4,40.8]
[1746578346678,4.29688,1836.5,1836.4,40.8]
[1746578346876,4.29688,1836.5,1836.4,1.08914]
[1746578347081,3.20181912,1836.5,1836.4,1.08914]
[1746578347281,1.08906,1836.6,1836.5,1.08908]
[1746578347482,4.9679,1836.7,1836.4,1.8899]
[1746578347685,1.08906,1836.6,1836.5,1.08906]
[1746578347885,1.08908,1836.5,1836.4,2.97899]
[1746578348494,1.7809,1836.6,1836.4,1.8899]
[1746578348786,1.08908,1836.5,1836.4,1.8899]
[1746578349286,1.08908,1836.5,1836.4,2.97904]
[1746578349474,2.86997,1836.6,1836.5,1.08908]
[1746578349675,1.08908,1836.5,1836.4,2.97903]
[1746578349879,2.99938,1836.5,1836.4,2.97903]
[1746578350074,1.08914,1836.4,1836.3,1.08915]
[1746578350279,2.99944,1836.4,1836.3,1.08915]
[1746578350487,1.9103,1836.4,1836.3,1.08915]
[1746578350985,1.08907,1836.6,1836.5,1.08908]
[1746578351186,2.99937,1836.6,1836.5,1.08908]
[1746578351574,1.9103,1836.6,1836.5,1.08908]
[1746578351780,12.5223,1836.8,1836.7,1.08896]
[1746578351980,3.64191719,1837.2,1836.8,1.0889]
[1746578352182,3.2078,1837.2,1837.1,1.08872]
[1746578352688,4.29646,1837.2,1837.1,1.08872]
[1746578353089,6.09076,1837.2,1837.1,1.08872]
[1746578353587,1.08872,1837.1,1837.0,2.96317]
[1746578353883,1.08878,1837.0,1836.9,1.08881]
[1746578354189,1.0888,1837.0,1836.9,1.0888]
[1746578354386,1.08884,1836.9,1836.8,3.704]
[1746578354589,1.08893,1836.8,1836.7,1.08894]
[1746578354786,4.70447,1836.9,1836.8,1.0889]
[1746578355388,4.70447,1836.9,1836.6,1.8744]
[1746578355590,4.70447,1836.9,1836.8,1.0889]
[1746578355981,4.70444,1836.9,1836.8,1.0889]
[1746578356185,2.88314,1836.9,1836.8,1.0889]
[1746578356490,1.7943,1836.9,1836.8,1.0889]
[1746578356987,2.88314,1836.9,1836.8,1.0889]
[1746578357686,1.7943,1836.9,1836.8,1.0889]
[1746578357989,2.88314,1836.9,1836.8,1.0889]
[1746578358485,1.7943,1836.9,1836.8,1.0889]
[1746578358883,2.88314,1836.9,1836.8,1.0889]
[1746578359287,1.08896,1836.7,1836.6,2.96338]
[1746578359487,1.08896,1836.8,1836.7,1.08894]
[1746578360190,2.88315,1836.9,1836.8,1.0889]
[1746578360491,1.7943,1836.9,1836.8,1.0889]
[1746578360679,2.88314,1836.9,1836.8,1.0889]
[1746578361285,1.7943,1836.9,1836.8,1.0889]
[1746578361485,1.08883,1837.0,1836.9,1.08884]
[1746578361989,1.08884,1836.9,1836.8,2.90106]
[1746578362193,2.93574,1836.9,1836.8,1.08886]
[1746578362392,1.0889,1836.8,1836.7,2.93941]
[1746578362691,2.9358,1836.8,1836.7,1.08896]
[1746578362891,1.8469,1836.8,1836.7,1.08896]
[1746578363295,2.9358,1836.8,1836.7,1.08896]
[1746578363495,1.8469,1836.8,1836.7,1.08896]
[1746578363897,2.93585,1836.8,1836.7,1.08896]
[1746578364297,1.8469,1836.8,1836.7,1.08896]
[1746578364505,6.36981,1837.0,1836.9,1.08884]
[1746578364794,6.36981,1837.0,1836.6,4.57292]
[1746578364795,1.08886,1836.9,1836.8,1.08885]
[1746578364995,2.92836,1836.9,1836.8,1.08885]
[1746578365198,1.0889,1836.8,1836.7,3.01673]
[1746578365386,1.08889,1836.9,1836.8,1.08888]
[1746578365592,1.8395,1836.9,1836.8,1.08888]
[1746578365792,2.92834,1836.9,1836.8,1.08888]
[1746578368496,1.8395,1836.9,1836.8,1.08888]
[1746578368699,2.92834,1836.9,1836.8,1.08888]
[1746578369706,1.8395,1836.9,1836.8,1.08888]
[1746578369908,12.1102,1837.4,1837.1,1.08866]
[1746578370202,1.08868,1837.2,1837.1,1.08866]
[1746578370403,2.99513,1837.3,1837.2,1.08866]
[1746578370604,1.9065,1837.3,1837.2,1.08866]
[1746578371400,5.0,1837.4,1837.3,1.0886]
[1746578371705,12.72142,1837.4,1836.9,1.7489]
[1746578371896,1.08867,1837.2,1836.9,1.7489]
[1746578372098,1.8602,1837.1,1837.0,1.08878]
[1746578372300,2.94892,1837.1,1836.9,3.5585]
[1746578372600,1.8602,1837.1,1836.9,5.4563]
[1746578372901,1.8602,1837.1,1837.0,1.08878]
[1746578373602,1.8602,1837.1,1837.0,2.98658]
[1746578373803,2.94892,1837.1,1837.0,1.08878]
[1746578376300,1.8602,1837.1,1836.8,1.8292]
[1746578376503,1.9351,1837.0,1836.9,1.08881]
[1746578376903,3.02388,1837.0,1836.9,1.08881]
[1746578377708,1.08886,1836.9,1836.8,1.08886]
[1746578377909,1.0889,1836.8,1836.7,1.08893]
[1746578378109,4.81198,1836.9,1836.8,1.0889]
[1746578378300,2.93778,1836.9,1836.8,1.0889]
[1746578378511,1.08892,1836.8,1836.7,1.08892]
[1746578379806,1.08896,1836.7,1836.6,9.97908]
[1746578380000,1.08894,1836.8,1836.6,8.8901]
[1746578380211,1.08894,1836.8,1836.7,1.08894]
[1746578380913,2.93778,1836.9,1836.8,1.0889]
[1746578381110,11.80419657,1837.4,1836.8,2.72226]
[1746578381312,1.08862,1837.3,1837.2,1.08862]
[1746578382010,1.08866,1837.2,1837.1,1.7719]
[1746578382312,1.08872,1837.1,1837.0,3.04165]
[1746578382510,1.08878,1837.0,1836.9,4.63889]
[1746578383315,1.08878,1837.0,1836.9,1.08879]
[1746578385517,1.08902,1836.6,1836.2,13.29055822]
[1746578385816,1.9276,1836.9,1836.8,1.0889]
[1746578386021,5.254,1837.0,1836.9,1.08884]
[1746578386317,5.254,1837.0,1836.9,4.29664]
[1746578386517,6.34278,1837.0,1836.9,4.29664]
[1746578386711,6.34278,1837.0,1836.9,3.2078]
[1746578386918,6.34278,1837.0,1836.9,3.03294]
[1746578387115,6.34278,1837.0,1836.9,1.9441]
[1746578388617,6.34278,1837.0,1836.9,3.03294]
[1746578388919,6.34278,1837.0,1836.9,1.9441]
[1746578392020,1.08884,1836.9,1836.8,3.8578]
[1746578392222,1.08894,1836.8,1836.7,1.08894]
[1746578392423,1.08896,1836.7,1836.6,2.87077]
[1746578393822,1.08896,1836.7,1836.6,1.7818]
[1746578394022,1.08896,1836.7,1836.6,2.87082]
[1746578395024,1.08893,1836.8,1836.7,1.08895]
[1746578395423,1.08896,1836.7,1836.6,2.87079]
[1746578397125,1.08902,1836.6,1836.5,44.4789]
[1746578397326,1.08901,1836.7,1836.6,1.08902]
[1746578397624,3.0326,1836.8,1836.7,1.08896]
[1746578398028,3.0326,1836.8,1836.7,2.93246]
[1746578398426,1.9437,1836.8,1836.7,2.93246]
[1746578399128,3.0326,1836.8,1836.7,2.93246]
[1746578399329,6.2404,1836.8,1836.7,2.93246]
[1746578400924,6.2404,1836.8,1836.7,1.8435]
[1746578401137,1.08902,1836.6,1836.5,45.56795]
[1746578401333,3.0002,1836.7,1836.6,1.08902]
[1746578401535,1.9112,1836.7,1836.6,1.08902]
[1746578401733,3.00016,1836.7,1836.6,2.98102]
[1746578402132,3.00016,1836.7,1836.6,1.892]
[1746578402729,3.00016,1836.7,1836.6,2.98102]
[1746578402934,1.08902,1836.6,1836.5,1.8932]
[1746578403131,4.85552,1836.6,1836.5,1.8932]
[1746578403539,4.85552,1836.6,1836.5,2.98228]
[1746578403540,1.08902,1836.6,1836.5,2.98228]
[1746578403741,1.08902,1836.6,1836.5,4.87428]
[1746578404741,3.0002,1836.7,1836.6,1.08902]
[1746578404941,3.0002,1836.7,1836.6,2.91642]
[1746578405142,3.0002,1836.7,1836.6,1.8274]
[1746578405741,1.08902,1836.6,1836.5,2.98223]
[1746578405945,2.94252,1836.6,1836.5,2.98223]
[1746578406240,1.089,1836.7,1836.6,1.08902]
[1746578406442,2.9425,1836.7,1836.6,2.91642]
[1746578406747,1.08893,1836.8,1836.7,1.08893]
[1746578406942,1.08893,1836.8,1836.7,1.8274]
[1746578407846,3.59639657,1837.0,1836.7,1.8274]
[1746578408045,3.59639657,1837.0,1836.9,1.08884]
[1746578408243,4.68517657,1837.0,1836.9,1.08884]
[1746578408443,3.59639657,1837.0,1836.9,1.08884]
[1746578408944,3.59639657,1837.0,1836.9,2.99254]
[1746578409248,3.59639657,1837.1,1837.0,1.08878]
[1746578409549,3.59639657,1837.1,1837.0,4.96288]
[1746578411142,5.41121245,1837.2,1837.1,1.08872]
[1746578411444,2.23387028,1837.2,1837.1,16.42172]
[1746578411841,2.23387028,1837.2,1837.1,57.22172]
[1746578412039,12.21402611,1837.4,1837.3,1.0886]
[1746578412040,5.0,1837.4,1837.3,1.0886]
[1746578412246,5.0,1837.4,1837.3,4.2964]
[1746578412639,5.0,1837.4,1837.3,47.0181]
[1746578413346,5.0,1837.4,1837.3,48.7889]
[1746578413939,5.0,1837.4,1837.3,45.5811]
[1746578424853,3.75416,1837.4,1837.3,45.5811]
[1746578425042,2.51565,1837.4,1837.3,45.5811]
[1746578425243,1.8377,1837.9,1837.8,1.08831]
[1746578425446,2.92595,1837.9,1837.8,1.08831]
[1746578425643,7.92595,1837.9,1837.8,1.08831]
[1746578426052,6.8377,1837.9,1837.8,1.08831]
[1746578426253,7.92595,1837.9,1837.8,1.08831]
[1746578426455,6.8377,1837.9,1837.8,1.08831]
[1746578426756,2.92595,1837.9,1837.8,1.08831]
[1746578427255,1.8377,1837.9,1837.8,1.08831]
[1746578427653,2.92595,1837.9,1837.8,1.08831]
[1746578428253,2.92595,1837.9,1837.8,40.8]
[1746578428454,2.92595,1837.9,1837.8,41.88831]
[1746578430453,1.8377,1837.9,1837.8,41.88831]
[1746578430659,2.92595,1837.9,1837.8,41.88831]
[1746578432360,1.8377,1837.9,1837.8,41.88831]
[1746578432757,2.92595,1837.9,1837.8,41.88831]
[1746578433962,1.8377,1837.9,1837.8,41.88831]
[1746578435366,2.92595,1837.9,1837.8,41.88831]
[1746578439164,1.8377,1837.9,1837.4,5.0237]
[1746578439466,1.0886,1837.3,1837.2,3.05139]
[1746578439664,1.08859,1837.4,1837.3,1.08858]
[1746578439862,5.5205,1837.4,1837.3,1.08858]
[1746578440863,6.60904,1837.4,1837.3,1.08858]
[1746578441356,5.5205,1837.4,1837.3,1.08858]
[1746578442169,6.60904,1837.4,1837.3,1.08858]
[1746578442670,5.5205,1837.4,1837.3,1.08858]
[1746578442970,6.60904,1837.4,1837.3,1.08858]
[1746578445071,5.5205,1837.4,1837.3,1.08858]
[1746578445273,5.5205,1837.4,1837.3,2.89048]
[1746578447776,6.60904,1837.4,1837.3,2.89048]
[1746578447977,5.5205,1837.4,1837.3,2.89048]
[1746578449276,6.60904,1837.4,1837.3,2.89048]
[1746578450377,5.5205,1837.4,1837.3,2.89048]
[1746578452579,6.60904,1837.4,1837.3,2.89048]
[1746578454481,5.5205,1837.4,1837.3,2.89048]
[1746578455181,5.5205,1837.4,1837.3,43.69048]
[1746578455378,6.60904,1837.4,1837.3,1.08858]
[1746578455682,5.5205,1837.4,1837.3,1.08858]
[1746578456377,1.8418,1837.4,1837.3,3.04788]
[1746578456881,4.29628,1837.6,1837.5,1.08848]
[1746578457084,6.12738,1837.6,1837.5,1.08848]
[1746578458873,1.8311,1837.6,1837.5,1.08848]
[1746578459079,10.2329,1837.9,1837.8,1.08831]
[1746578459281,12.0654,1837.9,1837.8,1.08831]
[1746578459474,11.9044,1837.9,1837.8,1.08831]
[1746578459680,1.08815,1838.1,1838.0,1.08813]
[1746578459980,1.8288,1838.1,1838.0,1.08813]
[1746578460483,1.9,1838.1,1838.0,1.08813]
[1746578461482,2.72048,1838.0,1837.4,2.72136]
[1746578461684,8.14528,1837.9,1837.8,1.08831]
[1746578461883,1.08832,1837.8,1837.7,1.08832]
[1746578462181,1.9341,1837.8,1837.7,1.08832]
[1746578462780,1.9341,1837.8,1837.6,4.75338]
[1746578462975,1.9589,1837.7,1837.6,1.08838]
[1746578463174,3.04727,1837.7,1837.6,1.08838]
[1746578463377,4.98137,1837.7,1837.6,1.08838]
[1746578463682,3.893,1837.7,1837.6,1.08838]
[1746578464286,4.98137,1837.7,1837.6,1.08838]
[1746578464797,1.08844,1837.6,1837.5,1.08844]
[1746578465082,1.8709,1837.6,1837.5,1.08844]
[1746578465888,1.8709,1837.6,1837.5,3.06294]
[1746578466886,2.95933,1837.6,1837.5,1.08844]
[1746578467185,1.08848,1837.5,1837.4,1.08851]
[1746578467374,2.95938,1837.5,1837.4,1.08851]
[1746578467573,1.9589,1837.7,1837.3,5.183]
[1746578467782,4.91817,1837.7,1837.6,1.08843]
[1746578470089,1.08843,1837.6,1837.5,2.96544]
[1746578470292,2.99313,1837.6,1837.5,2.96544]
[1746578470889,1.08848,1837.5,1837.4,1.08851]
[1746578471093,2.90058,1837.5,1837.4,1.08851]
[1746578471482,1.08854,1837.4,1837.3,6.27156]
[1746578471688,2.90064,1837.4,1837.3,6.27156]
[1746578471991,1.8121,1837.4,1837.3,6.27156]
[1746578472891,2.90064,1837.4,1837.3,6.27156]
[1746578473089,4.84484,1837.4,1837.3,6.27156]
[1746578473490,3.7563,1837.4,1837.3,6.27156]
[1746578473791,4.84484,1837.4,1837.3,1.08856]
[1746578474189,3.7563,1837.4,1837.2,42.7741]
[1746578474383,3.7563,1837.4,1837.2,1.08864]
[1746578474384,2.9016,1837.3,1837.2,1.08864]
[1746578474684,1.813,1837.3,1837.2,1.08864]
[1746578475087,1.813,1837.3,1837.2,4.95874]
[1746578476683,3.01357,1837.6,1837.5,1.08848]
[1746578476891,9.96457,1837.6,1837.5,1.08848]
[1746578477889,8.8761,1837.6,1837.5,1.08848]
[1746578478093,9.96453,1837.6,1837.5,1.08848]
[1746578478295,1.813,1837.6,1837.5,2.93918]
[1746578478596,5.1381,1837.8,1837.7,1.08837]
[1746578478785,7.0734,1837.8,1837.7,1.08837]
[1746578479188,8.13368,1837.9,1837.6,1.8507]
[1746578479189,9.74373686,1838.0,1837.9,1.08825]
[1746578479394,1.08826,1837.9,1837.8,1.08826]
[1746578479593,1.08826,1837.9,1837.7,4.76583]
[1746578479594,1.08831,1837.8,1837.7,4.76583]
[1746578479796,4.8606,1837.9,1837.8,1.08831]
[1746578480092,1.08831,1837.8,1837.7,4.76582]
[1746578480391,3.05891,1837.8,1837.7,4.76582]
[1746578480590,8.65549686,1838.0,1837.7,3.6775]
[1746578480796,1.9706,1837.9,1837.8,2.87981]
[1746578481599,3.05885,1837.9,1837.8,2.87981]
[1746578481788,1.9706,1837.9,1837.8,2.87981]
[1746578482695,3.05885,1837.9,1837.8,2.87981]
[1746578482891,1.9706,1837.9,1837.8,2.87981]
[1746578484090,1.9706,1837.9,1837.8,4.74441]
[1746578485896,7.21402611,1838.5,1838.3,1.08801]
[1746578486198,1.08804,1838.3,1838.2,1.08803]
[1746578486388,1.803,1838.3,1838.2,1.08803]
[1746578486586,6.53565686,1838.4,1838.3,1.08801]
[1746578486789,8.33865686,1838.4,1838.3,1.08801]
[1746578486990,7.25069686,1838.4,1838.3,2.91891]
[1746578487300,5.44769686,1838.4,1838.3,2.91891]
[1746578489495,2.89093,1838.5,1838.4,1.08795]
[1746578490694,1.08795,1838.4,1838.3,2.91887]
[1746578490899,2.91775,1838.4,1838.3,2.91887]
[1746578491810,1.8298,1838.4,1838.3,2.91887]
[1746578492909,2.91775,1838.4,1838.3,2.91887]
[1746578493302,1.8298,1838.4,1838.3,2.91887]
[1746578493603,2.91775,1838.4,1838.3,2.91887]
[1746578493798,2.72018,1838.2,1837.8,9.714]
[1746578494001,1.08824,1838.0,1837.9,1.08823]
[1746578494200,1.08824,1838.0,1837.9,41.88823]
[1746578494705,2.90174,1838.0,1837.9,41.88823]
[1746578495100,2.90174,1838.0,1837.9,40.8]
[1746578495802,6.10954,1838.0,1837.9,40.8]
[1746578496002,2.90174,1838.0,1837.9,41.88825]
[1746578496510,2.90174,1838.0,1837.9,40.8]
[1746578496714,2.72067,1837.9,1837.3,5.92931]
[1746578496909,1.08841,1837.7,1837.4,1.8039]
[1746578497106,1.08841,1837.7,1837.6,1.08843]
[1746578497508,6.19936,1837.8,1837.6,1.08843]
[1746578497806,1.08837,1837.7,1837.6,1.08843]
[1746578498814,1.08837,1837.7,1837.5,2.89234]
[1746578499012,5.111,1837.8,1837.5,1.8039]
[1746578499215,1.08843,1837.6,1837.5,1.8039]
[1746578499705,1.08843,1837.6,1837.5,2.89238]
[1746578500011,1.08843,1837.6,1837.5,2.89235]
[1746578500612,2.93491,1837.7,1837.6,1.08843]
[1746578500813,1.08843,1837.6,1837.5,2.89235]
[1746578501111,1.0884,1837.7,1837.6,1.08843]
[1746578501413,1.08818,1838.1,1837.7,2.72092]
[1746578501714,1.08815,1838.1,1838.0,1.08817]
[1746578501912,5.44769686,1838.2,1837.9,1.08822]
[1746578502112,1.08816,1838.1,1838.0,1.08819]
[1746578502407,1.08908,1836.5,1836.1,16.53728304]
[1746578502603,3.2078,1836.5,1836.1,16.53728304]
[1746578502811,3.2078,1836.5,1836.3,20.78101138]
[1746578503006,3.2078,1836.5,1836.3,25.78101138]
[1746578503212,2.28049502,1837.3,1836.3,25.78101138]
[1746578503213,3.2078,1837.0,1836.4,3.2078]
[1746578503411,3.2078,1837.0,1836.5,1.08907]
[1746578503812,3.2078,1836.8,1836.4,40.8]
[1746578504016,3.2078,1836.8,1836.7,32.17729442]
[1746578504408,3.2078,1836.8,1836.7,37.28129442]
[1746578505213,1.08882,1837.0,1836.7,37.28129442]
[1746578505516,4.29656,1837.1,1836.7,37.28129442]
[1746578505713,3.2078,1836.9,1836.7,37.28129442]
[1746578506013,3.2078,1836.9,1836.7,32.17729442]
[1746578506316,4.29664,1836.9,1836.8,5.104]
[1746578506909,3.2078,1836.9,1836.8,5.104]
[1746578507113,3.2078,1837.2,1836.8,11.19286]
[1746578507408,1.08866,1837.3,1836.8,5.104]
[1746578507712,1.08867,1837.2,1836.9,5.6409]
[1746578507913,4.29658,1837.0,1836.9,1.9481]
[1746578508218,4.29658,1837.0,1836.9,7.0531]
[1746578508517,1.0889,1836.8,1836.7,5.105]
[1746578508717,1.08887,1836.9,1836.7,5.105]
[1746578509016,3.2078,1836.9,1836.8,1.831]
[1746578509825,3.2078,1836.9,1836.8,2.9199]
[1746578510912,3.2078,1837.1,1837.0,1.08873]
[1746578511121,4.29626,1837.6,1837.2,1.08861]
[1746578511315,3.2078,1837.4,1837.3,3.6891]
[1746578512912,3.2078,1837.6,1837.5,1.08843]
[1746578513214,3.2078,1837.8,1837.6,1.08841]
[1746578513417,4.29611,1837.8,1837.7,1.7959]
[1746578513814,4.29611,1837.8,1837.7,40.8]
[1746578514319,1.08837,1837.7,1837.6,1.8552]
[1746578514612,3.2078,1838.0,1837.6,1.8552]
[1746578514918,5.44769686,1838.1,1837.9,1.08823]
[1746578514919,9.74366686,1838.1,1837.9,1.08823]
[1746578515120,4.29597,1838.1,1838.0,1.8552]
[1746578516120,6.20647,1838.1,1838.0,1.8552]
[1746578518118,6.20647,1838.1,1838.0,2.94339]
[1746578518119,3.2078,1838.1,1838.0,2.94339]
[1746578518724,4.29593,1838.1,1838.0,2.94339]
[1746578519321,5.0483,1838.3,1838.2,1.08807]
[1746578519517,4.29581,1838.3,1838.2,6.19207]
[1746578519716,3.2078,1838.3,1838.2,6.19207]
[1746578519914,1.08797,1838.4,1838.2,6.19207]
[1746578520217,1.08797,1838.4,1838.3,2.87811]
[1746578520421,1.08797,1838.4,1838.3,1.7901]
[1746578521018,1.08795,1838.4,1838.3,1.7901]
[1746578521220,3.06425,1838.4,1838.3,1.7901]
[1746578521919,1.08801,1838.3,1838.2,6.19207]
[1746578522118,4.29581,1838.3,1838.2,7.98217]
[1746578522319,4.29581,1838.3,1838.2,6.8941]
[1746578522519,4.29581,1838.3,1838.2,7.98217]
[1746578523025,4.29581,1838.3,1838.2,6.8941]
[1746578523421,4.29581,1838.3,1838.2,7.98217]
[1746578526323,4.29581,1838.3,1838.2,6.8941]
[1746578527425,4.29581,1838.3,1838.2,7.98217]
[1746578527813,5.44769686,1839.1,1838.8,1.08766]
[1746578528020,2.9534,1838.9,1838.8,1.08772]
[1746578528418,1.08772,1838.8,1838.7,2.92323]
[1746578528820,3.00302,1838.8,1838.7,2.92323]
[1746578529125,1.9153,1838.8,1838.7,2.92323]
[1746578529926,4.2955,1838.9,1838.8,1.08772]
[1746578530423,1.08772,1838.8,1838.7,2.92323]
[1746578530828,3.00302,1838.8,1838.7,2.92323]
[1746578531624,1.08795,1838.4,1838.3,1.8105]
[1746578531926,6.9943,1838.8,1838.3,8.7681]
[1746578531927,1.08793,1838.5,1838.3,8.7681]
[1746578532129,1.08793,1838.5,1838.4,1.8556]
[1746578532330,3.04893,1838.5,1838.4,1.8556]
[1746578532723,3.04893,1838.5,1838.4,2.94355]
[1746578532931,1.08795,1838.4,1838.3,1.8105]
[1746578533130,3.04895,1838.4,1838.3,6.9125]
[1746578533331,3.04895,1838.4,1838.3,8.00051]
[1746578533520,6.25675,1838.4,1838.3,8.00051]
[1746578534332,5.1688,1838.4,1838.3,8.00051]
[1746578535230,6.25675,1838.4,1838.3,8.00051]
[1746578536327,6.25675,1838.4,1838.1,1.8558]
[1746578536328,5.1688,1838.4,1838.1,1.8558]
[1746578536535,4.29581,1838.3,1838.2,5.076]
[1746578536728,7.97025,1838.3,1838.2,1.08807]
[1746578536925,1.08807,1838.2,1838.1,6.16408]
[1746578537132,2.97587,1838.2,1838.1,6.16408]
[1746578538135,1.08813,1838.1,1838.0,2.93494]
[1746578538335,3.05513,1838.1,1838.0,8.01094]
[1746578538537,1.967,1838.1,1838.0,8.01094]
[1746578538732,4.9944,1838.3,1838.0,8.01094]
[1746578538733,6.08245,1838.3,1838.2,1.08807]
[1746578538931,8.04945,1838.3,1838.2,1.08807]
[1746578539131,6.26285,1838.3,1838.2,1.08807]
[1746578539334,1.0881,1838.2,1838.1,1.08809]
[1746578539838,3.0551,1838.2,1838.1,2.89309]
[1746578543039,1.08825,1837.9,1837.8,1.08828]
[1746578543235,1.08831,1837.8,1837.7,47.8327]
[1746578543441,2.88111,1837.8,1837.7,47.8327]
[1746578544243,1.08817,1838.1,1838.0,1.08819]
[1746578544540,2.99021,1838.2,1838.1,1.08813]
[1746578545344,2.99021,1838.2,1838.1,2.92983]
[1746578545544,1.9021,1838.2,1838.1,2.92983]
[1746578545843,9.1798,1838.3,1838.2,1.08807]
[1746578546040,3.2078,1838.3,1838.2,2.92977]
[1746578546542,3.2078,1838.5,1838.4,1.08795]
[1746578546944,1.9021,1838.6,1838.5,1.08789]
[1746578547139,1.9021,1838.6,1838.5,2.91349]
[1746578547852,2.98993,1838.6,1838.5,2.91349]
[1746578548150,1.9021,1838.6,1838.5,2.91349]
[1746578549052,13.87918858,1838.8,1838.7,1.08777]
[1746578549240,6.61058858,1838.8,1838.7,1.08777]
[1746578549854,9.81838858,1838.8,1838.7,1.08777]
[1746578550053,6.61058858,1838.8,1838.7,1.08777]
[1746578550248,2.99894,1838.8,1838.7,1.08777]